fUST/lending_fUST_20241010
["ID","MTS","AMOUNT","RATE_DAILY","PERIOD"]
[340089229,1728502239125,-15681.7554113,0.00035978,5]
[340089230,1728502239134,-58252.73389,0.00035978,5]
[340089231,1728502239144,-15681.7554113,0.00035979,5]
[340089232,1728502239154,-151.0,0.00035979,14]
[340089233,1728502239163,-151.0,0.00035979,14]
[340089234,1728502239173,-151.0,0.00035979,14]
[340089235,1728502239182,-241.031494,0.00035979,14]
[340089236,1728502239191,-151.0,0.00035979,14]
[340089237,1728502239200,-1364.30079696,0.00035979,15]
[340089238,1728502239209,-809.22192268,0.00035979,15]
[340089242,1728502239683,-555.07887428,0.00035979,15]
[340089243,1728502239693,-1364.30079696,0.00035979,15]
[340089244,1728502239703,-836.95773838,0.00035979,15]
[340089245,1728502239717,-527.34305858,0.00035979,15]
[340089246,1728502239728,-200.0,0.0003598,33]
[340089247,1728502239739,-1039.09,0.0003598,7]
[340089248,1728502239748,-151.0,0.0003598,14]
[340089249,1728502239758,-156.120694,0.0003598,14]
[340089250,1728502239767,-151.0,0.0003598,14]
[340089251,1728502239776,-47045.266234,0.0003598,5]
[340089253,1728502239786,-58252.73389,0.0003598,5]
[340089255,1728502239795,-160.0,0.00035988,10]
[340089257,1728502239805,-151.0,0.00035989,14]
[340089259,1728502239814,-151.0,0.00035989,14]
[340089262,1728502239823,-283.73524,0.00035989,14]
[340089264,1728502239833,-151.0,0.00035989,14]
[340089265,1728502239842,-151.0,0.00035989,14]
[340089267,1728502239852,-151.0,0.00035989,14]
[340089269,1728502239861,-151.0,0.00035989,14]
[340089271,1728502239870,-162.18543022,0.00035989,10]
[340089273,1728502239881,-160.0,0.00035989,10]
[340089275,1728502239891,-160.0,0.00035989,10]
[340089276,1728502239903,-4525.81952272,0.0003599,25]
[340089277,1728502239913,-5421.62876141,0.0003599,25]
[340089278,1728502239922,-151.0,0.0003599,14]
[340089279,1728502239932,-151.0,0.0003599,14]
[340089280,1728502239942,-151.0,0.0003599,14]
[340089281,1728502239952,-151.0,0.0003599,14]
[340089282,1728502239963,-151.0,0.0003599,14]
[340089283,1728502239972,-199.781927,0.0003599,14]
[340089284,1728502239981,-151.0,0.0003599,14]
[340089286,1728502239990,-152.238732,0.0003599,14]
[340089288,1728502239999,-151.0,0.0003599,14]
[340089291,1728502240009,-151.998676,0.0003599,14]
[340089293,1728502240018,-151.0,0.0003599,14]
[340089294,1728502240027,-261.754001,0.0003599,2]
[340089295,1728502240036,-151.0,0.0003599,14]
[340089296,1728502240045,-151.0,0.0003599,14]
[340089297,1728502240054,-151.0,0.0003599,14]
[340089298,1728502240063,-151.0,0.0003599,14]
[340089299,1728502240072,-151.0,0.0003599,14]
[340089300,1728502240081,-151.0,0.0003599,14]
[340089301,1728502240090,-151.0,0.0003599,14]
[340089302,1728502240099,-151.0,0.0003599,14]
[340089303,1728502240109,-191.61338,0.0003599,14]
[340089304,1728502240118,-151.0,0.0003599,14]
[340089305,1728502240128,-191.61338,0.0003599,14]
[340089306,1728502240139,-151.0,0.0003599,14]
[340089307,1728502240148,-151.0,0.0003599,14]
[340089308,1728502240158,-151.0,0.0003599,14]
[340089310,1728502240168,-151.0,0.0003599,14]
[340089313,1728502240177,-151.0,0.0003599,14]
[340089315,1728502240187,-157.661528,0.0003599,14]
[340089326,1728502240276,-31363.5108227,0.0003599,5]
[340089328,1728502240286,-151.0,0.0003599,14]
[340089330,1728502240295,-151.0,0.0003599,14]
[340089332,1728502240304,-116505.46778,0.0003599,5]
[340089334,1728502240314,-151.0,0.0003599,14]
[340089336,1728502240324,-151.0,0.0003599,14]
[340089338,1728502240335,-151.0,0.0003599,14]
[340089340,1728502240346,-160.0,0.00035999,10]
[340089342,1728502240356,-160.0,0.00035999,10]
[340089344,1728502240366,-160.0,0.00035999,10]
[340089346,1728502240375,-24363.58819,0.00035999,4]
[340089348,1728502240384,-99060.97634173,0.00036,2]
[340089350,1728502240401,-151.94253,0.00036,14]
[340089352,1728502240410,-970.0,0.00036,30]
[340089355,1728502240419,-970.0,0.00036,30]
[340089357,1728502240429,-970.0,0.00036,30]
[340089359,1728502240438,-970.0,0.00036,30]
[340089361,1728502240447,-970.0,0.00036,30]
[340089363,1728502240457,-476.867476,0.00036,30]
[340089365,1728502240467,-151.0,0.00036,14]
[340089367,1728502240476,-151.0,0.00036,14]
[340089369,1728502240486,-151.0,0.00036,14]
[340089371,1728502240495,-151.0,0.00036,14]
[340089373,1728502240504,-242.191344,0.00036,14]
[340089375,1728502240514,-191.61338,0.00036,14]
[340089377,1728502240523,-191.61338,0.00036,14]
[340089379,1728502240532,-151.0,0.00036,14]
[340089381,1728502240541,-151.0,0.00036,14]
[340089383,1728502240550,-151.0,0.00036,14]
[340089385,1728502240560,-151.0,0.00036,14]
[340089387,1728502240570,-151.0,0.00036,14]
[340089389,1728502240580,-151.0,0.00036,14]
[340089391,1728502240590,-151.0,0.00036,14]
[340089393,1728502240601,-196.211188,0.00036,14]
[340089395,1728502240610,-1344.1081362,0.000361,2]
[340089397,1728502240620,-150.112233,0.000362,10]
[340089399,1728502240629,-15681.7554113,0.00036263,5]
[340089401,1728502240643,-500.0,0.00036273,5]
[340089403,1728502240653,-500.0,0.00036273,5]
[340089405,1728502240663,-297.48955375,0.00036273,5]
[340089407,1728502240672,-500.0,0.00036273,5]
[340089409,1728502240681,-167.54540335,0.00036273,5]
[340089411,1728502240691,-151.0,0.00036291,14]
[340089412,1728502240700,-151.0,0.00036291,14]
[340089414,1728502240710,-151.0,0.00036291,14]
[340089416,1728502240720,-150.112233,0.000363,8]
[340089418,1728502240732,-150.0,0.00036301,2]
[340089420,1728502240742,-1219.0,0.00036301,2]
[340089421,1728502240752,-1453.815,0.00036302,2]
[340089423,1728502240762,-150.0,0.00036305,5]
[340089425,1728502240772,-500.0,0.00036305,5]
[340089427,1728502240782,-150.112233,0.000364,5]
[340089429,1728502240791,-4243.06191806,0.00036479,7]
[340089431,1728502240802,-150.112233,0.000365,9]
[340089432,1728502240811,-150.112233,0.000366,7]
[340089434,1728502240821,-610.0,0.000366,2]
[340089435,1728502240831,-1344.1081362,0.000366,2]
[340089436,1728502240841,-8379.16289489,0.00036665,2]
[340089437,1728502240850,-151.0,0.00036665,14]
[340089438,1728502240860,-168.392003,0.00036665,14]
[340089439,1728502240869,-191.61338,0.00036665,14]
[340089440,1728502240879,-191.61338,0.00036665,14]
[340089441,1728502240891,-151.0,0.00036665,14]
[340089442,1728502240901,-151.0,0.00036665,14]
[340089443,1728502240910,-151.0,0.00036665,14]
[340089444,1728502240919,-151.0,0.00036665,14]
[340089445,1728502240929,-150.112233,0.000367,10]
[340089446,1728502240939,-150.112233,0.000368,7]
[340089447,1728502240948,-150.112233,0.000368,10]
[340089448,1728502240957,-150.112233,0.000369,8]
[340089449,1728502240967,-150.112233,0.000369,7]
[340089450,1728502240977,-2249.77095739,0.00036925,120]
[340089454,1728502242838,-173.16,0.0003596,3]
[340089455,1728502242849,-449.83,0.0003598,10]
[340089456,1728502242859,-37.09,0.00036925,120]
[340089457,1728502242875,-721.6013499,0.00036925,120]
[340089458,1728502242885,-31363.5108227,0.00036925,5]
[340089459,1728502242894,-151.0,0.00036925,14]
[340089460,1728502242904,-15681.7554113,0.00036925,5]
[340089462,1728502242913,-151.0,0.00036935,14]
[340089463,1728502242923,-151.0,0.00036935,14]
[340089464,1728502242932,-1000.0,0.00036935,28]
[340089465,1728502242941,-1000.0,0.00036935,28]
[340089466,1728502242950,-1000.0,0.00036935,28]
[340089467,1728502242959,-1000.0,0.00036935,28]
[340089468,1728502242969,-1000.0,0.00036935,28]
[340089469,1728502242978,-1000.0,0.00036935,28]
[340089470,1728502242987,-1000.0,0.00036935,28]
[340089471,1728502243006,-1000.0,0.00036935,28]
[340089473,1728502243016,-1000.0,0.00036935,28]
[340089475,1728502243026,-1000.0,0.00036935,28]
[340089477,1728502243036,-1000.0,0.00036935,28]
[340089479,1728502243046,-1000.0,0.00036935,28]
[340089481,1728502243055,-1000.0,0.00036935,28]
[340089482,1728502243065,-1000.0,0.00036935,28]
[340089484,1728502243075,-1000.0,0.00036935,28]
[340089486,1728502243084,-1000.0,0.00036935,28]
[340089488,1728502243095,-727.40452574,0.00036935,28]
[340089489,1728502243105,-151.0,0.00036935,14]
[340089490,1728502243115,-151.0,0.00036935,14]
[340089491,1728502243125,-191.61338,0.00036935,14]
[340089492,1728502243134,-191.61338,0.00036935,14]
[340089493,1728502243144,-191.61338,0.00036935,14]
[340089494,1728502243155,-191.61338,0.00036935,14]
[340089495,1728502243165,-151.0,0.00036935,14]
[340089496,1728502243175,-151.0,0.00036935,14]
[340089497,1728502243185,-151.0,0.00036935,14]
[340089498,1728502243195,-151.0,0.00036935,14]
[340089500,1728502243204,-151.0,0.00036935,14]
[340089501,1728502243214,-151.0,0.00036935,14]
[340089502,1728502243223,-151.0,0.00036935,14]
[340089503,1728502243233,-151.0,0.00036935,14]
[340089504,1728502243242,-176.292184,0.00036935,14]
[340089505,1728502243252,-500.736817,0.00036973,5]
[340089506,1728502243262,-352.65879736,0.00036973,5]
[340089507,1728502243271,-501.23625459,0.00036973,5]
[340089508,1728502243282,-500.7117031,0.00036973,5]
[340089509,1728502243291,-151.90111745,0.00036973,5]
[340089510,1728502243301,-150.112233,0.00037,7]
[340089511,1728502243310,-170.0,0.00037,2]
[340089512,1728502243320,-151.0,0.00037015,14]
[340089513,1728502243330,-249.861886,0.00037015,14]
[340089514,1728502243339,-151.0,0.00037015,14]
[340089515,1728502243349,-198.405478,0.00037015,14]
[340089516,1728502243359,-151.0,0.00037015,14]
[340089517,1728502243369,-151.0,0.00037025,14]
[340089518,1728502243378,-151.0,0.00037025,14]
[340089519,1728502243389,-151.0,0.00037025,14]
[340089520,1728502243399,-151.0,0.00037025,14]
[340089521,1728502243410,-191.61338,0.00037025,14]
[340089522,1728502243420,-191.61338,0.00037025,14]
[340089523,1728502243429,-160.0,0.00037034,10]
[340089524,1728502243439,-151.0,0.00037035,14]
[340089525,1728502243448,-151.0,0.00037035,14]
[340089526,1728502243458,-151.0,0.00037035,14]
[340089527,1728502243468,-144152.33497626,0.00037045,2]
[340089528,1728502243481,-96384.13394869,0.00037045,2]
[340089529,1728502243491,-151.0,0.00037045,14]
[340089530,1728502243501,-151.0,0.00037045,14]
[340089531,1728502243511,-151.0,0.00037045,14]
[340089532,1728502243520,-151.0,0.00037045,14]
[340089533,1728502243531,-156.465679,0.00037045,14]
[340089535,1728502243542,-191.61338,0.00037045,14]
[340089537,1728502243551,-191.61338,0.00037045,14]
[340089539,1728502243561,-151.0,0.00037045,14]
[340089541,1728502243571,-249.861886,0.00037045,14]
[340089543,1728502243580,-151.0,0.00037045,14]
[340089544,1728502243590,-151.0,0.00037045,14]
[340089547,1728502243600,-172.46,0.00037073,5]
[340089548,1728502243613,-1344.1081362,0.000371,2]
[340089549,1728502243623,-150.112233,0.000372,6]
[340089550,1728502243633,-15085.43231067,0.000373,2]
[340089551,1728502243644,-150.112233,0.000373,7]
[340089552,1728502243654,-247.082096,0.000373,14]
[340089553,1728502243664,-151.0,0.000373,14]
[340089554,1728502243674,-283.774771,0.000373,14]
[340089555,1728502243683,-23955.47427383,0.00037318,2]
[340089582,1728503214454,1813.47793121,0.00022,2]
[340089661,1728503432149,-294.784655,0.00030286,2]
[340089663,1728503432159,-168.101111,0.00030805,2]
[340089665,1728503432169,-193.35932276,0.00030918,2]
[340089667,1728503432181,-206.64067724,0.00030918,2]
[340089668,1728503432194,-400.0,0.00030918,2]
[340089670,1728503432203,-1878.38738527,0.00030919,2]
[340089698,1728503438381,-23021.61261473,0.00030919,2]
[340089699,1728503438393,-168.101111,0.00031126,2]
[340089700,1728503438404,-168.101111,0.00031447,2]
[340089701,1728503438416,-500.0,0.00031633,5]
[340089703,1728503438428,-150.0,0.00031633,5]
[340089705,1728503438440,-500.0,0.00031633,5]
[340089706,1728503438451,-168.101111,0.00031768,2]
[340089707,1728503438463,-500.0,0.0003195,5]
[340089708,1728503438473,-500.0,0.0003195,5]
[340089709,1728503438483,-168.101111,0.00032089,2]
[340089710,1728503438493,-168.101111,0.0003241,2]
[340089711,1728503438505,-185.507,0.00032826,33]
[340089712,1728503438517,-500.0,0.000329,5]
[340089713,1728503438528,-500.0,0.000329,5]
[340089714,1728503438538,-500.0,0.000329,5]
[340089715,1728503438550,-500.0,0.000329,5]
[340089716,1728503438562,-1000.0,0.00033003,5]
[340089717,1728503438573,-1000.0,0.00033003,5]
[340089718,1728503438583,-560.0,0.00033292,2]
[340089719,1728503438593,-401.78997971,0.0003332,5]
[340089720,1728503438603,-235.10446992,0.0003332,5]
[340089721,1728503438614,-410.0,0.0003401,2]
[340089722,1728503438624,-1092.75970573,0.0003427,5]
[340089723,1728503438633,-81.91218572,0.00035006,5]
[340089724,1728503438646,-1418.08781428,0.00035006,5]
[340089725,1728503438656,-1507.43152012,0.00035006,5]
[340089726,1728503438667,-347.0,0.00035847,2]
[340089727,1728503438677,-500.06714848,0.0003589,2]
[340089728,1728503438687,-1865.43348952,0.000359,2]
[340089742,1728503440260,-618.46,0.000359,2]
[340089743,1728503440275,-26314.86601323,0.000359,2]
[340089744,1728503440285,-1000.0,0.0003597,7]
[340089745,1728503440295,-1486.7277938,0.000361,2]
[340089746,1728503440306,-151.0,0.00036549,7]
[340089747,1728503440322,-150.0,0.00036554,2]
[340089748,1728503440331,-1219.0,0.00036554,2]
[340089749,1728503440340,-1453.815,0.00036554,2]
[340089750,1728503440349,-12588.40655,0.00036599,4]
[340089751,1728503440358,-1486.7277938,0.000366,2]
[340089752,1728503440367,-610.0,0.000368,2]
[340089753,1728503440376,-259.74,0.00036905,3]
[340089754,1728503440385,-779.23,0.00036905,3]
[340089755,1728503440395,-374.86,0.00036905,10]
[340089756,1728503440404,-16600.6459737,0.00036915,5]
[340089757,1728503440413,-3484.85703426,0.00036915,5]
[340089758,1728503440423,-16600.6459737,0.00036925,5]
[340089759,1728503440432,-3484.85703426,0.00036925,5]
[340089760,1728503440442,-500.0,0.00036973,5]
[340089761,1728503440451,-500.736817,0.00036973,5]
[340089762,1728503440460,-500.0,0.00036973,5]
[340089763,1728503440470,-500.28800323,0.00036973,5]
[340089764,1728503440479,-502.25563538,0.00036973,5]
[340089765,1728503440488,-501.23625459,0.00036973,5]
[340089766,1728503440498,-500.7117031,0.00036973,5]
[340089767,1728503440507,-352.65879736,0.00036973,5]
[340089768,1728503440517,-151.90111745,0.00036973,5]
[340089769,1728503440526,-297.48955375,0.00036973,5]
[340089770,1728503440535,-500.0,0.00036973,5]
[340089771,1728503440544,-167.54540335,0.00036973,5]
[340089772,1728503440553,-1486.7277938,0.000371,2]
[340089773,1728503440564,-1000.0,0.00037209,2]
[340089774,1728503440573,-8300.32298687,0.00037297,5]
[340089775,1728503440582,-1742.42851713,0.00037297,5]
[340089776,1728503440591,-8300.32298687,0.00037299,5]
[340089777,1728503440601,-1742.42851713,0.00037299,5]
[340089778,1728503440610,-150.112233,0.000373,5]
[340089779,1728503440620,-436.39602801,0.00037308,15]
[340089780,1728503440629,-361.50178593,0.00037308,15]
[340089781,1728503440639,-500.0,0.00037308,15]
[340089782,1728503440648,-500.0,0.00037308,15]
[340089783,1728503440657,-500.0,0.00037308,15]
[340089784,1728503440666,-500.0,0.00037308,15]
[340089785,1728503440676,-500.0,0.00037308,15]
[340089786,1728503440685,-500.0,0.00037308,15]
[340089787,1728503440694,-500.0,0.00037308,15]
[340089788,1728503440704,-359.50532826,0.00037308,15]
[340089789,1728503440714,-594.94070887,0.00037308,15]
[340089790,1728503440724,-500.0,0.00037308,15]
[340089791,1728503440737,-46510.7278422,0.00037309,60]
[340089792,1728503440748,-300.02,0.00037317,2]
[340089793,1728503440758,-6395.97589453,0.00037318,2]
[340089794,1728503440767,-1280.29008357,0.00037319,2]
[340089795,1728503440777,-1000.0,0.0003734,7]
[340089796,1728503440788,-2000.0,0.00037347,5]
[340089797,1728503440798,-508.20553877,0.00037373,5]
[340089798,1728503440809,-500.65230462,0.00037373,5]
[340089799,1728503440819,-500.0,0.00037373,5]
[340089800,1728503440831,-500.0,0.00037373,5]
[340089801,1728503440841,-506.61880099,0.00037373,5]
[340089802,1728503440852,-500.52732622,0.00037373,5]
[340089803,1728503440864,-500.41975102,0.00037373,5]
[340089804,1728503440874,-500.0,0.00037373,5]
[340089805,1728503440884,-500.0,0.00037373,5]
[340089806,1728503440896,-8300.32298687,0.00037376,5]
[340089807,1728503440908,-1742.42851713,0.00037376,5]
[340089808,1728503440918,-8300.32298687,0.00037378,5]
[340089809,1728503440930,-1742.42851713,0.00037378,5]
[340089810,1728503440941,-151.0,0.00037386,14]
[340089811,1728503440950,-151.94253,0.00037386,14]
[340089812,1728503440961,-151.0,0.00037386,14]
[340089813,1728503440973,-151.0,0.00037386,14]
[340089814,1728503440983,-242.191344,0.00037386,14]
[340089815,1728503440993,-151.0,0.00037386,14]
[340089816,1728503441002,-151.0,0.00037386,14]
[340089817,1728503441012,-153.290704,0.00037386,14]
[340089818,1728503441023,-153.290704,0.00037386,14]
[340089819,1728503441032,-151.0,0.00037386,14]
[340089820,1728503441043,-151.0,0.00037386,14]
[340089821,1728503441053,-151.0,0.00037386,14]
[340089822,1728503441064,-151.0,0.00037388,14]
[340089823,1728503441072,-151.0,0.00037388,14]
[340089824,1728503441082,-8300.32298687,0.00037389,5]
[340089825,1728503441093,-1742.42851713,0.00037389,5]
[340089826,1728503441102,-151.0,0.00037399,14]
[340089827,1728503441112,-151.0,0.00037399,14]
[340089828,1728503441121,-151.0,0.00037399,14]
[340089829,1728503441131,-90.90716265,0.00037399,14]
[340089830,1728503441214,-60.09283735,0.00037399,14]
[340089831,1728503441223,-168.392003,0.00037399,14]
[340089832,1728503441233,-151.0,0.00037399,14]
[340089833,1728503441242,-198.405478,0.00037399,14]
[340089834,1728503441251,-153.290704,0.00037399,14]
[340089835,1728503441261,-153.290704,0.00037399,14]
[340089836,1728503441272,-150.112233,0.000374,5]
[340089837,1728503441282,-250.207299,0.000374,2]
[340089838,1728503441291,-510.38783163,0.00037409,5]
[340089839,1728503441303,-2395.54148907,0.00037409,5]
[340089840,1728503441318,-821.12168342,0.00037409,5]
[340089847,1728503443318,-2106.33901139,0.00037409,5]
[340089848,1728503443370,-4998.44503991,0.00037409,5]
[340089858,1728503446207,-5364.70643713,0.00037409,5]
[340089859,1728503446219,-404.10448115,0.00037409,5]
[340089860,1728503446229,-352.21966485,0.00037409,5]
[340089911,1728504632303,-9855.05611972,0.00029953,2]
[340089983,1728504638642,-15044.94388028,0.00029953,2]
[340089984,1728504638652,-770.1394712,0.00029996,2]
[340089986,1728504638661,-221.088491,0.0003001,2]
[340089988,1728504638671,-250.0,0.00030311,2]
[340089989,1728504638681,-250.0,0.00030666,2]
[340089990,1728504638692,-468.1572764,0.00030728,2]
[340089991,1728504638702,-250.0,0.0003075,2]
[340089992,1728504638717,-250.0,0.00030835,2]
[340089993,1728504638726,-250.0,0.00030919,2]
[340089994,1728504638736,-250.0,0.00031003,2]
[340089995,1728504638745,-250.0,0.00031087,2]
[340089996,1728504638756,-250.0,0.00031171,2]
[340089997,1728504638768,-250.0,0.00031255,2]
[340089998,1728504638777,-250.0,0.00031339,2]
[340089999,1728504638788,-250.0,0.00031423,2]
[340090000,1728504638798,-250.0,0.00031507,2]
[340090001,1728504638807,-250.0,0.00031592,2]
[340090002,1728504638816,-250.0,0.00031676,2]
[340090003,1728504638826,-400.0,0.00031742,2]
[340090004,1728504638835,-400.0,0.00031743,2]
[340090005,1728504638845,-250.0,0.0003176,2]
[340090006,1728504638854,-250.0,0.00031844,2]
[340090007,1728504638864,-250.0,0.00031928,2]
[340090008,1728504638873,-250.0,0.00032012,2]
[340090009,1728504638882,-250.0,0.00032096,2]
[340090010,1728504638892,-250.0,0.0003218,2]
[340090011,1728504638901,-250.0,0.00032264,2]
[340090012,1728504638910,-159.534834,0.00032328,2]
[340090013,1728504638920,-213.8156874,0.00032526,2]
[340090014,1728504638930,-560.0,0.0003415,2]
[340090015,1728504638939,-320.0,0.00034916,2]
[340090016,1728504638948,-169.0,0.0003589,2]
[340090017,1728504638958,-150.0,0.000359,2]
[340090018,1728504638968,-169.0,0.00036,2]
[340090019,1728504638977,-149.01894059,0.000361,2]
[340090020,1728504638990,-834.75037181,0.000361,2]
[340090021,1728504639000,-150.0,0.0003619,2]
[340090022,1728504639011,-177.30047508,0.00036225,2]
[340090023,1728504639020,-6743.2955958,0.00036299,2]
[340090024,1728504639030,-500.0,0.00036325,5]
[340090025,1728504639040,-6743.2955958,0.00036503,2]
[340090026,1728504639049,-150.303,0.00036562,2]
[340090027,1728504639059,-1219.0,0.00036562,2]
[340090028,1728504639068,-983.7693124,0.000366,2]
[340090029,1728504639078,-169.05486863,0.000366,5]
[340090030,1728504639087,-150.0,0.00036661,2]
[340090031,1728504639097,-694.0,0.0003674,2]
[340090032,1728504639107,-6743.2955958,0.00036759,2]
[340090033,1728504639116,-151.32664007,0.00036773,2]
[340090034,1728504639126,-610.0,0.00037,2]
[340090035,1728504639135,-983.7693124,0.000371,2]
[340090036,1728504639144,-6743.29559583,0.00037138,2]
[340090037,1728504639154,-500.0,0.000372,7]
[340090038,1728504639164,-500.0,0.000372,7]
[340090039,1728504639174,-500.0,0.000372,7]
[340090040,1728504639185,-500.0,0.000372,7]
[340090041,1728504639195,-346.60969467,0.000372,7]
[340090042,1728504639293,-519.48,0.00037298,3]
[340090043,1728504639304,-312.38,0.00037308,10]
[340090044,1728504639315,-260.32,0.00037308,10]
[340090045,1728504639324,-11205.4360323,0.00037308,5]
[340090046,1728504639333,-2822.17410351,0.00037308,5]
[340090047,1728504639344,-437.94809563,0.00037317,15]
[340090048,1728504639354,-488.32674543,0.00037317,15]
[340090049,1728504639364,-7683.62309146,0.00037318,2]
[340090050,1728504639376,-13066.31098231,0.00037318,2]
[340090144,1728505832489,-250.0,0.00031259,2]
[340090145,1728505832500,-36.73075199,0.00031345,2]
[340090148,1728505832545,-213.26924801,0.00031345,2]
[340090150,1728505832554,-3000.0,0.00031353,2]
[340090152,1728505832563,-250.0,0.00031431,2]
[340090154,1728505832572,-250.0,0.00031517,2]
[340090156,1728505832582,-211.231684,0.00031517,2]
[340090158,1728505832591,-250.0,0.00031602,2]
[340090160,1728505832601,-202.4578165,0.00031607,2]
[340090162,1728505832611,-172.7509024,0.00031607,2]
[340090165,1728505832623,-77.2490976,0.00031607,2]
[340090167,1728505832632,-250.0,0.00031688,2]
[340090169,1728505832644,-250.0,0.00031774,2]
[340090171,1728505832656,-250.0,0.00031859,2]
[340090172,1728505832666,-400.0,0.00031894,2]
[340090173,1728505832677,-400.0,0.00031894,2]
[340090174,1728505832688,-328.4707634,0.00031897,2]
[340090175,1728505832701,-273.4087284,0.00031897,2]
[340090176,1728505832712,-181.31560196,0.00031945,2]
[340090318,1728505838715,-68.68439804,0.00031945,2]
[340090320,1728505838726,-250.0,0.00032031,2]
[340090322,1728505838735,-250.0,0.00032117,2]
[340090324,1728505838745,-250.0,0.00032202,2]
[340090326,1728505838754,-250.0,0.00032288,2]
[340090328,1728505838764,-250.0,0.00032374,2]
[340090329,1728505838773,-196.56321806,0.0003246,2]
[340090646,1728505844081,-53.43678194,0.0003246,2]
[340090648,1728505844093,-250.0,0.00032545,2]
[340090650,1728505844104,-250.0,0.00032631,2]
[340090652,1728505844114,-250.0,0.00032717,2]
[340090654,1728505844125,-196.56321806,0.00032802,2]
[340090895,1728506859078,-211.2316858,0.00030565,2]
[340090896,1728506859109,-400.0,0.00030723,2]
[340090897,1728506859144,-400.0,0.00030723,2]
[340090898,1728506880814,220.0,0.00030723,2]
[340090899,1728506883463,400.0,0.00030723,2]
[340090900,1728506902754,9.5366284,0.00030723,2]
[340090956,1728507034958,-145.4633716,0.00030723,2]
[340090958,1728507034968,-155.0,0.00030723,2]
[340090960,1728507034978,-500.0,0.000308,5]
[340090961,1728507034988,-159.535284,0.00031362,2]
[340090963,1728507034997,-500.0,0.00031375,5]
[340090965,1728507035007,-1000.0,0.0003217,5]
[340090967,1728507035016,-160.851911,0.00033366,2]
[340090969,1728507035025,-5395.7518594,0.0003339,2]
[340090971,1728507035037,-455.011,0.0003339,2]
[340090972,1728507035048,-10432.081534,0.0003339,2]
[340091134,1728507045699,-1480.40610687,0.0003339,2]
[340091297,1728508235020,-159.0,0.000242,120]
[340091298,1728508235030,-213.381877,0.00031018,2]
[340091299,1728508235040,-400.0,0.00031023,2]
[340091300,1728508235050,-400.0,0.00031023,2]
[340091301,1728508235059,-245.0,0.00031024,2]
[340091302,1728508235069,-7825.80676564,0.00031024,2]
[340091303,1728508235081,-357.59765314,0.00031024,2]
[340091304,1728508235117,-9291.668466,0.00031024,2]
[340091361,1728508238155,-7424.92711522,0.00031024,2]
[340091363,1728508238165,-150.0,0.00031967,5]
[340091365,1728508238174,-500.0,0.00031967,2]
[340091367,1728508238184,-159.535284,0.00032376,2]
[340091369,1728508238193,-7196.86532819,0.00033094,2]
[340091371,1728508238202,-1000.0,0.00033337,2]
[340091373,1728508238212,-560.0,0.00033401,2]
[340091375,1728508238221,-162.018254,0.00033694,2]
[340091377,1728508238231,-153.0,0.00033699,2]
[340091379,1728508238241,-153.0,0.00033699,2]
[340091381,1728508238250,-153.0,0.00033699,2]
[340091383,1728508238259,-153.0,0.00033699,2]
[340091385,1728508238269,-2539.13661571,0.00033711,2]
[340091387,1728508238278,-162.018254,0.00033811,2]
[340091389,1728508238289,-162.018254,0.00033928,2]
[340091391,1728508238301,-245.0,0.00034024,2]
[340091393,1728508238311,-245.0,0.00034024,2]